{"text_format":"3","workbook":"xlsx","n_sheets":3,"sheets":["Student List","Class Roster","Student Details"],"not_rendered":{"images":2,"defined_names":3},"read":"whole","date_system":"1900"}

{"sheet":"Student List","index":0,"n_rows":7,"n_cols":12,"rows_kept":7,"merged":[[7,1,7,11]]}
[]
[]
[null," ","STUDENT NAME","EMAIL","HOME PHONE","CELL PHONE","DOB","EMERGENCY CONTACT","EMERGENCY PHONE","PHYSICIAN","PHYSICIAN PHONE","  "]
[null,{"$f":"Students[[#This Row],[STUDENT NAME]]","v":"Alexander, David"},"Alexander, David","david@example.com",1235550121,1235550126,"1993-01-01","Michelle Alexander",1235550130,"Shu Ito",1235550134]
[null,{"$f":"Students[[#This Row],[STUDENT NAME]]","v":"Kim, Shane"},"Kim, Shane","shane@example.com",1235550122,1235550127,"1992-01-01","Jim Kim",1235550131,"Daniel Roth",1235550135]
[null,{"$f":"Students[[#This Row],[STUDENT NAME]]","v":"Mirchandani, Bharat"},"Mirchandani, Bharat","bharat@example.com",1235550124,1235550128,"1991-01-01","Nitin S. Mirchandani",1235550132,"John Kane",1235550136]
[null,{"$f":"Students[[#This Row],[STUDENT NAME]]","v":"Turner, Richard"},"Turner, Richard","richard@example.com",1235550125,1235550129,"1992-01-01","Olinda Turner",1235550133,"Terry Earls",1235550137]

{"sheet":"Class Roster","index":1,"n_rows":12,"n_cols":7,"rows_kept":12,"merged":[[12,1,12,6]]}
[]
[{"$nulls":3},"Graphic Design Institute"]
[null,null,"COURSE","Graphic Arts 101","START DATE","2011-06-06"]
[null,null,"INSTRUCTOR","Hanson, Mark","END DATE","2011-08-26"]
[null,null,"STUDENTS ENROLLED",{"$f":"COUNTA(StudentRoster[STUDENT NAME])","v":5}]
[]
[null," ","STUDENT NAME","EMAIL","HOME PHONE","CELL PHONE","  "]
[null,null,"Alexander, David",{"$f":"IFERROR(VLOOKUP(StudentRoster[[#This Row],[STUDENT NAME]],Students[],3),\"\")","v":"david@example.com"},{"$f":"IFERROR(VLOOKUP(StudentRoster[[#This Row],[STUDENT NAME]],Students[],4),\"\")","v":1235550121},{"$f":"IFERROR(VLOOKUP(StudentRoster[[#This Row],[STUDENT NAME]],Students[],5),\"\")","v":1235550126}]
[null,null,"Kim, Shane",{"$f":"IFERROR(VLOOKUP(StudentRoster[[#This Row],[STUDENT NAME]],Students[],3),\"\")","v":"shane@example.com"},{"$f":"IFERROR(VLOOKUP(StudentRoster[[#This Row],[STUDENT NAME]],Students[],4),\"\")","v":1235550122},{"$f":"IFERROR(VLOOKUP(StudentRoster[[#This Row],[STUDENT NAME]],Students[],5),\"\")","v":1235550127}]
[null,null,"Mirchandani, Bharat",{"$f":"IFERROR(VLOOKUP(StudentRoster[[#This Row],[STUDENT NAME]],Students[],3),\"\")","v":"bharat@example.com"},{"$f":"IFERROR(VLOOKUP(StudentRoster[[#This Row],[STUDENT NAME]],Students[],4),\"\")","v":1235550124},{"$f":"IFERROR(VLOOKUP(StudentRoster[[#This Row],[STUDENT NAME]],Students[],5),\"\")","v":1235550128}]
[null,null,"Turner, Richard",{"$f":"IFERROR(VLOOKUP(StudentRoster[[#This Row],[STUDENT NAME]],Students[],3),\"\")","v":"richard@example.com"},{"$f":"IFERROR(VLOOKUP(StudentRoster[[#This Row],[STUDENT NAME]],Students[],4),\"\")","v":1235550125},{"$f":"IFERROR(VLOOKUP(StudentRoster[[#This Row],[STUDENT NAME]],Students[],5),\"\")","v":1235550129}]
[null,null,"Kim, Shane",{"$f":"IFERROR(VLOOKUP(StudentRoster[[#This Row],[STUDENT NAME]],Students[],3),\"\")","v":"shane@example.com"},{"$f":"IFERROR(VLOOKUP(StudentRoster[[#This Row],[STUDENT NAME]],Students[],4),\"\")","v":1235550122},{"$f":"IFERROR(VLOOKUP(StudentRoster[[#This Row],[STUDENT NAME]],Students[],5),\"\")","v":1235550127}]

{"sheet":"Student Details","index":2,"n_rows":12,"n_cols":4,"rows_kept":12}
[]
[]
[]
[null,null,"STUDENT NAME","Alexander, David"]
[null,null,"EMAIL",{"$f":"IFERROR(VLOOKUP(StudentName,Students[],3,FALSE),\"\")","v":"david@example.com"}]
[null,null,"HOME PHONE",{"$f":"IFERROR(VLOOKUP(StudentName,Students[],4,FALSE),\"\")","v":1235550121}]
[null,null,"CELL PHONE",{"$f":"IFERROR(VLOOKUP(StudentName,Students[],5,FALSE),\"\")","v":1235550126}]
[null,null,"DOB",{"$f":"IFERROR(VLOOKUP(StudentName,Students[],6,FALSE),\"\")","v":"1993-01-01"}]
[null,null,"EMERGENCY CONTACT",{"$f":"IFERROR(VLOOKUP(StudentName,Students[],7,FALSE),\"\")","v":"Michelle Alexander"}]
[null,null,"EMERGENCY PHONE",{"$f":"IFERROR(VLOOKUP(StudentName,Students[],8,FALSE),\"\")","v":1235550130}]
[null,null,"PHYSICIAN",{"$f":"IFERROR(VLOOKUP(StudentName,Students[],9,FALSE),\"\")","v":"Shu Ito"}]
[null,null,"PHYSICIAN PHONE",{"$f":"IFERROR(VLOOKUP(StudentName,Students[],10,FALSE),\"\")","v":1235550134}]